[Event "Live Chess"]
[Site "Chess.com"]
[Date "2021.02.28"]
[Round "-"]
[White "Greet, Andrew N"]
[Black "Abdulla, Murad"]
[Result "1/2-1/2"]
[BlackElo "2079"]
[CurrentPosition "8/7p/6p1/5p2/5k2/6rP/3PK1P1/6R1 w - -"]
[ECO "B23"]
[ECOUrl "https://www.chess.com/openings/Sicilian-Defense-Closed-Traditional-Line-3.Bb5-Nd4"]
[EndDate "2021.02.28"]
[EndTime "12:07:13"]
[Link "https://www.chess.com/live/game/8249061351"]
[StartTime "11:02:49"]
[Termination "Game drawn by repetition"]
[TimeControl "1500+10"]
[Timezone "UTC"]
[UTCDate "2021.02.28"]
[UTCTime "11:02:49"]
[WhiteElo "2299"]

1. e4 { [%clk 0:25:10] } 1... c5 { [%clk 0:25:10] } 2. Nc3 { [%clk 0:25:17.1] } 2... Nc6 { [%clk 0:25:17.7] } 3. Bb5 { [%clk 0:25:24.6] } 3... Nd4 { [%clk 0:25:24.7] } 4. Nf3 { [%clk 0:25:32.8] } 4... a6 { [%clk 0:24:18.1] } 5. Bd3 { [%clk 0:25:25.2] } 5... g6 { [%clk 0:23:36] } 6. O-O { [%clk 0:22:17.1] } 6... Bg7 { [%clk 0:23:38.7] } 7. Re1 { [%clk 0:22:11.1] } 7... d6 { [%clk 0:23:27.8] } 8. Nxd4 { [%clk 0:22:06.9] } 8... cxd4 { [%clk 0:23:30.1] } 9. Ne2 { [%clk 0:22:14] } 9... Bd7 { [%clk 0:19:21.2] } 10. a4 { [%clk 0:18:38.4] } 10... Rc8 { [%clk 0:19:07.2] } 11. h3 { [%clk 0:17:50.5] } 11... Qa5 { [%clk 0:18:41.2] } 12. c3 { [%clk 0:17:45.3] } 12... e5 { [%clk 0:17:41.3] } 13. b4 { [%clk 0:17:24.9] } 13... Qb6 { [%clk 0:17:31.7] } 14. a5 { [%clk 0:14:25] } 14... Qa7 { [%clk 0:17:06.3] } 15. cxd4 { [%clk 0:14:23] } 15... exd4 { [%clk 0:17:11.1] } 16. Nf4 { [%clk 0:14:28.5] } 16... Ne7 { [%clk 0:11:54] } 17. Nd5 { [%clk 0:14:28.6] } 17... Nxd5 { [%clk 0:12:02.2] } 18. exd5+ { [%clk 0:14:36.4] } 18... Kf8 { [%clk 0:12:11.7] } 19. Ba3 { [%clk 0:14:12.6] } 19... Bf6 { [%clk 0:08:44.9] } 20. b5 { [%clk 0:13:09.2] } 20... Bxb5 { [%clk 0:08:16.5] } 21. Bxd6+ { [%clk 0:13:07.7] } 21... Kg7 { [%clk 0:08:25.6] } 22. Bxb5 { [%clk 0:12:55.8] } 22... axb5 { [%clk 0:08:35.5] } 23. Qb3 { [%clk 0:13:01.2] } 23... Qa6 { [%clk 0:07:53] } 24. Be7 { [%clk 0:12:02.8] } 24... Bxe7 { [%clk 0:05:21.6] } 25. Rxe7 { [%clk 0:12:09.6] } 25... Rhe8 { [%clk 0:05:31.2] } 26. Rxe8 { [%clk 0:09:14.2] } 26... Rxe8 { [%clk 0:05:41.1] } 27. Qd3 { [%clk 0:08:44.8] } 27... Rd8 { [%clk 0:05:43.5] } 28. Qxd4+ { [%clk 0:08:15.3] } 28... Qf6 { [%clk 0:05:52.3] } 29. Qxf6+ { [%clk 0:08:08.5] } 29... Kxf6 { [%clk 0:06:02.2] } 30. Kf1 { [%clk 0:07:32.1] } 30... Rxd5 { [%clk 0:06:01.6] } 31. Ke2 { [%clk 0:07:33.7] } 31... Ke5 { [%clk 0:04:59.4] } 32. Ke3 { [%clk 0:06:31.7] } 32... b4 { [%clk 0:04:14.8] } 33. f4+ { [%clk 0:04:28.8] } 33... Kd6 { [%clk 0:03:38.1] } 34. a6 { [%clk 0:03:04.8] } 34... bxa6 { [%clk 0:03:39.5] } 35. Rxa6+ { [%clk 0:03:14.7] } 35... Kc7 { [%clk 0:02:36] } 36. Ra4 { [%clk 0:02:34.3] } 36... Rb5 { [%clk 0:02:37] } 37. Kd3 { [%clk 0:02:39.7] } 37... b3 { [%clk 0:02:36.8] } 38. Ra1 { [%clk 0:02:45.3] } 38... b2 { [%clk 0:02:21.9] } 39. Rb1 { [%clk 0:02:53.2] } 39... Rb3+ { [%clk 0:02:31.2] } 40. Kc2 { [%clk 0:02:47.5] } 40... Rg3 { [%clk 0:02:18.5] } 41. Rg1 { [%clk 0:02:50.5] } 41... Kd6 { [%clk 0:02:12.5] } 42. Kxb2 { [%clk 0:02:57.9] } 42... Kd5 { [%clk 0:02:13] } 43. Kc2 { [%clk 0:02:42.6] } 43... f5 { [%clk 0:02:14.2] } 44. Kd1 { [%clk 0:01:19.6] } 44... Ke4 { [%clk 0:02:11.1] } 45. Ke2 { [%clk 0:01:23.8] } 45... Kxf4 { [%clk 0:02:17] } 46. Kf2 { [%clk 0:01:00.4] } 46... Rd3 { [%clk 0:01:32.5] } 47. Ke2 { [%clk 0:00:49.1] } 47... Rg3 { [%clk 0:01:01.7] } 48. Kf2 { [%clk 0:00:54] } 48... Rd3 { [%clk 0:01:09.8] } 49. Ke2 { [%clk 0:01:01.9] } 49... Rg3 { [%clk 0:01:18.8] } 1/2-1/2

[Event "Live Chess"]
[Site "Chess.com"]
[Date "2021.02.28"]
[Round "-"]
[White "Olson, Hamish"]
[Black "Polaczek, Richard"]
[Result "1/2-1/2"]
[BlackElo "2270"]
[CurrentPosition "8/6r1/4k3/R7/4b2K/8/8/8 w - -"]
[ECO "B04"]
[ECOUrl "https://www.chess.com/openings/Alekhines-Defense-Modern-Alburt-Variation-5.Bc4-Nb6-6.Bb3-Bg7-7.Ng5"]
[EndDate "2021.02.28"]
[EndTime "12:35:50"]
[Link "https://www.chess.com/live/game/8249103027"]
[StartTime "11:05:55"]
[Termination "Game drawn by 50-move rule"]
[TimeControl "1500+10"]
[Timezone "UTC"]
[UTCDate "2021.02.28"]
[UTCTime "11:05:55"]
[WhiteElo "1995"]

1. e4 { [%clk 0:25:10] } 1... Nf6 { [%clk 0:25:10] } 2. e5 { [%clk 0:25:16.4] } 2... Nd5 { [%clk 0:25:17.4] } 3. d4 { [%clk 0:25:18.2] } 3... d6 { [%clk 0:25:21.5] } 4. Nf3 { [%clk 0:25:25.8] } 4... g6 { [%clk 0:25:28.5] } 5. Bc4 { [%clk 0:25:29.2] } 5... Nb6 { [%clk 0:25:35.8] } 6. Bb3 { [%clk 0:25:37.6] } 6... Bg7 { [%clk 0:25:42.9] } 7. Ng5 { [%clk 0:25:38.4] } 7... e6 { [%clk 0:25:47.5] } 8. Qf3 { [%clk 0:25:40.8] } 8... Qe7 { [%clk 0:25:54.4] } 9. Ne4 { [%clk 0:25:33.3] } 9... dxe5 { [%clk 0:25:59.1] } 10. Bg5 { [%clk 0:25:03] } 10... Qb4+ { [%clk 0:26:01.1] } 11. Nbd2 { [%clk 0:24:44.9] } 11... exd4 { [%clk 0:24:02.3] } 12. a3 { [%clk 0:24:36] } 12... Qa5 { [%clk 0:23:38.8] } 13. Bf6 { [%clk 0:24:36.7] } 13... Bxf6 { [%clk 0:22:56.6] } 14. Qxf6 { [%clk 0:22:23.7] } 14... O-O { [%clk 0:22:57.5] } 15. Qxd4 { [%clk 0:22:18] } 15... N6d7 { [%clk 0:21:14.2] } 16. O-O-O { [%clk 0:21:09.8] } 16... Qe5 { [%clk 0:18:23.1] } 17. Qe3 { [%clk 0:20:45.4] } 17... Nc6 { [%clk 0:17:43.5] } 18. f4 { [%clk 0:17:18.6] } 18... Qd4 { [%clk 0:16:44.3] } 19. Qh3 { [%clk 0:16:28.1] } 19... Qg7 { [%clk 0:13:50.4] } 20. Qh4 { [%clk 0:16:15.9] } 20... Nd4 { [%clk 0:11:01.6] } 21. Nf3 { [%clk 0:12:23.4] } 21... Nf5 { [%clk 0:10:56.8] } 22. Qf2 { [%clk 0:10:55.7] } 22... Nf6 { [%clk 0:10:38.9] } 23. Nxf6+ { [%clk 0:09:54.8] } 23... Qxf6 { [%clk 0:10:43.6] } 24. Ne5 { [%clk 0:09:28.3] } 24... Nd6 { [%clk 0:09:04.4] } 25. h4 { [%clk 0:08:34.8] } 25... b6 { [%clk 0:08:39.5] } 26. Kb1 { [%clk 0:07:42.9] } 26... Ne4 { [%clk 0:04:41.8] } 27. Qe3 { [%clk 0:07:32.3] } 27... Nc5 { [%clk 0:04:45.1] } 28. h5 { [%clk 0:07:01.5] } 28... Nxb3 { [%clk 0:03:49.6] } 29. Ng4 { [%clk 0:05:09.3] } 29... Qg7 { [%clk 0:02:13.8] } 30. cxb3 { [%clk 0:04:54.7] } 30... e5 { [%clk 0:02:03] } 31. h6 { [%clk 0:03:49.4] } 31... Qh8 { [%clk 0:02:09.4] } 32. Nxe5 { [%clk 0:03:52.6] } 32... Qf6 { [%clk 0:02:05.2] } 33. g4 { [%clk 0:03:53.7] } 33... Re8 { [%clk 0:01:36.9] } 34. g5 { [%clk 0:03:36] } 34... Qf5+ { [%clk 0:01:21.8] } 35. Ka1 { [%clk 0:03:36.2] } 35... f6 { [%clk 0:01:17.2] } 36. gxf6 { [%clk 0:03:34.6] } 36... Qxf6 { [%clk 0:01:25.6] } 37. Rhe1 { [%clk 0:02:17.2] } 37... Be6 { [%clk 0:01:18.1] } 38. Rd4 { [%clk 0:01:38.3] } 38... Rad8 { [%clk 0:01:01.4] } 39. Red1 { [%clk 0:01:30.7] } 39... Rxd4 { [%clk 0:00:57] } 40. Rxd4 { [%clk 0:01:40.6] } 40... Qh4 { [%clk 0:00:48.4] } 41. Qc3 { [%clk 0:01:04.2] } 41... Qxh6 { [%clk 0:00:43] } 42. Ka2 { [%clk 0:00:43] } 42... Qg7 { [%clk 0:00:46.7] } 43. Nf3 { [%clk 0:00:36.8] } 43... c5 { [%clk 0:00:42.2] } 44. Rd6 { [%clk 0:00:28.4] } 44... Qxc3 { [%clk 0:00:48.4] } 45. bxc3 { [%clk 0:00:38.3] } 45... Bf5 { [%clk 0:00:48.5] } 46. Ne5 { [%clk 0:00:46.4] } 46... Kg7 { [%clk 0:00:49] } 47. b4 { [%clk 0:00:53.3] } 47... cxb4 { [%clk 0:00:56.3] } 48. axb4 { [%clk 0:01:01.6] } 48... h5 { [%clk 0:01:04.3] } 49. c4 { [%clk 0:01:09.3] } 49... h4 { [%clk 0:01:12.5] } 50. c5 { [%clk 0:01:15.3] } 50... bxc5 { [%clk 0:01:19.8] } 51. bxc5 { [%clk 0:01:25.2] } 51... h3 { [%clk 0:01:23] } 52. Rd2 { [%clk 0:01:33.7] } 52... Be4 { [%clk 0:01:24.2] } 53. Rd7+ { [%clk 0:01:32] } 53... Kg8 { [%clk 0:01:12.5] } 54. Ng4 { [%clk 0:00:25.7] } 54... Re6 { [%clk 0:01:15.1] } 55. Rxa7 { [%clk 0:00:11] } 55... Bf3 { [%clk 0:01:10.9] } 56. Nh6+ { [%clk 0:00:17.1] } 56... Kf8 { [%clk 0:01:18.7] } 57. f5 { [%clk 0:00:16.3] } 57... gxf5 { [%clk 0:01:17.2] } 58. Nxf5 { [%clk 0:00:24] } 58... h2 { [%clk 0:01:19.6] } 59. Ng3 { [%clk 0:00:21.9] } 59... Bd5+ { [%clk 0:00:49.7] } 60. Kb2 { [%clk 0:00:19.2] } 60... Rh6 { [%clk 0:00:29.3] } 61. Ra4 { [%clk 0:00:12.9] } 61... Rh3 { [%clk 0:00:28.8] } 62. Rf4+ { [%clk 0:00:20.9] } 62... Ke8 { [%clk 0:00:35] } 63. Rf2 { [%clk 0:00:27.4] } 63... Rxg3 { [%clk 0:00:34.7] } 64. Rxh2 { [%clk 0:00:35.9] } 64... Kd7 { [%clk 0:00:39] } 65. Rh6 { [%clk 0:00:36.5] } 65... Kc7 { [%clk 0:00:46.8] } 66. Rd6 { [%clk 0:00:40.3] } 66... Bg8 { [%clk 0:00:44.6] } 67. Rd2 { [%clk 0:00:20] } 67... Rb3+ { [%clk 0:00:39.4] } 68. Kc1 { [%clk 0:00:24.4] } 68... Bh7 { [%clk 0:00:40.1] } 69. Rd5 { [%clk 0:00:22.3] } 69... Kc6 { [%clk 0:00:36.6] } 70. Re5 { [%clk 0:00:24.7] } 70... Bg8 { [%clk 0:00:36.6] } 71. Kc2 { [%clk 0:00:32.3] } 71... Rg3 { [%clk 0:00:43.9] } 72. Kd2 { [%clk 0:00:38.7] } 72... Bd5 { [%clk 0:00:51.4] } 73. Re8 { [%clk 0:00:36.3] } 73... Kxc5 { [%clk 0:00:59.3] } 74. Rd8 { [%clk 0:00:43.3] } 74... Kd4 { [%clk 0:01:07.7] } 75. Kd1 { [%clk 0:00:50.3] } 75... Rg2 { [%clk 0:01:10.7] } 76. Rd7 { [%clk 0:00:52.3] } 76... Kc4 { [%clk 0:00:41.7] } 77. Ke1 { [%clk 0:00:58.2] } 77... Ra2 { [%clk 0:00:42.2] } 78. Rd8 { [%clk 0:01:03.4] } 78... Be4 { [%clk 0:00:46.3] } 79. Rd2 { [%clk 0:01:09.1] } 79... Ra3 { [%clk 0:00:39.4] } 80. Rd8 { [%clk 0:01:08.9] } 80... Bd5 { [%clk 0:00:39.6] } 81. Kd2 { [%clk 0:01:11.7] } 81... Kd4 { [%clk 0:00:47] } 82. Kd1 { [%clk 0:01:14.3] } 82... Ra2 { [%clk 0:00:47.5] } 83. Rd7 { [%clk 0:01:21.4] } 83... Ke4 { [%clk 0:00:52.4] } 84. Kc1 { [%clk 0:01:28.3] } 84... Rh2 { [%clk 0:00:52.9] } 85. Rd8 { [%clk 0:01:34.5] } 85... Rg2 { [%clk 0:00:28.9] } 86. Rd7 { [%clk 0:01:35] } 86... Kd4 { [%clk 0:00:29.7] } 87. Kd1 { [%clk 0:01:35.5] } 87... Ra2 { [%clk 0:00:23.4] } 88. Rd8 { [%clk 0:01:42.2] } 88... Kc4 { [%clk 0:00:30.9] } 89. Ke1 { [%clk 0:01:49.8] } 89... Be6 { [%clk 0:00:36.2] } 90. Rd6 { [%clk 0:01:47.1] } 90... Bg4 { [%clk 0:00:40.5] } 91. Rd2 { [%clk 0:01:53] } 91... Ra3 { [%clk 0:00:47.7] } 92. Rd8 { [%clk 0:01:54] } 92... Bf5 { [%clk 0:00:53.4] } 93. Kd2 { [%clk 0:01:47.7] } 93... Be4 { [%clk 0:00:52.6] } 94. Ke1 { [%clk 0:01:41] } 94... Ra2 { [%clk 0:00:56.6] } 95. Rd2 { [%clk 0:01:46.7] } 95... Ra1+ { [%clk 0:01:04.9] } 96. Rd1 { [%clk 0:01:39.9] } 96... Ra8 { [%clk 0:01:10.4] } 97. Rd7 { [%clk 0:01:41.4] } 97... Rh8 { [%clk 0:01:13.8] } 98. Kd2 { [%clk 0:01:40.7] } 98... Rh3 { [%clk 0:01:17.5] } 99. Rd8 { [%clk 0:01:45.2] } 99... Bf5 { [%clk 0:00:48] } 100. Ke1 { [%clk 0:01:43.7] } 100... Bd3 { [%clk 0:00:38.6] } 101. Kd2 { [%clk 0:01:30.5] } 101... Rh2+ { [%clk 0:00:45.2] } 102. Ke3 { [%clk 0:01:31.3] } 102... Re2+ { [%clk 0:00:52.6] } 103. Kf3 { [%clk 0:01:36.6] } 103... Re7 { [%clk 0:00:59.9] } 104. Rc8+ { [%clk 0:01:27.3] } 104... Kd4 { [%clk 0:01:08.7] } 105. Rd8+ { [%clk 0:01:34.6] } 105... Kc3 { [%clk 0:01:17.2] } 106. Kf4 { [%clk 0:01:35.2] } 106... Bc4 { [%clk 0:01:14.1] } 107. Rd1 { [%clk 0:01:07.6] } 107... Kb4 { [%clk 0:01:12.6] } 108. Ra1 { [%clk 0:01:08.4] } 108... Kc5 { [%clk 0:01:19.1] } 109. Ra5+ { [%clk 0:01:10.8] } 109... Kd4 { [%clk 0:01:27.5] } 110. Kg5 { [%clk 0:01:16.1] } 110... Bd5 { [%clk 0:01:27] } 111. Rb5 { [%clk 0:01:02.1] } 111... Ke5 { [%clk 0:01:28.4] } 112. Ra5 { [%clk 0:01:09.4] } 112... Rg7+ { [%clk 0:01:35.6] } 113. Kh5 { [%clk 0:01:16.5] } 113... Rg8 { [%clk 0:01:27.6] } 114. Rb5 { [%clk 0:01:14] } 114... Ke4 { [%clk 0:01:28.7] } 115. Kh6 { [%clk 0:01:03.7] } 115... Rg1 { [%clk 0:00:58.8] } 116. Ra5 { [%clk 0:01:08.9] } 116... Rg2 { [%clk 0:00:34.7] } 117. Rb5 { [%clk 0:01:11.4] } 117... Ra2 { [%clk 0:00:38.3] } 118. Kg5 { [%clk 0:01:02.2] } 118... Ke5 { [%clk 0:00:40.7] } 119. Kh5 { [%clk 0:01:08.3] } 119... Ra8 { [%clk 0:00:47.9] } 120. Kg5 { [%clk 0:01:14] } 120... Rg8+ { [%clk 0:00:36.3] } 121. Kh5 { [%clk 0:01:21.6] } 121... Ke6 { [%clk 0:00:37.3] } 122. Kh4 { [%clk 0:01:28.2] } 122... Rg7 { [%clk 0:00:34.8] } 123. Ra5 { [%clk 0:01:34.3] } 123... Be4 { [%clk 0:00:32.4] } 1/2-1/2

[Event "Live Chess"]
[Site "Chess.com"]
[Date "2021.02.28"]
[Round "-"]
[White "Findlay, David J"]
[Black "Gray, Euan"]
[Result "1/2-1/2"]
[BlackElo "1863"]
[CurrentPosition "2r1r2k/1p3p2/p1pq1p2/8/PP1P2Q1/6PP/5PK1/R3R3 w - -"]
[ECO "C26"]
[ECOUrl "https://www.chess.com/openings/Vienna-Game-Falkbeer-Mieses-Variation-3...Bc5-4.Bg2-Nc6-5.Nge2"]
[EndDate "2021.02.28"]
[EndTime "11:57:43"]
[Link "https://www.chess.com/live/game/8249600913"]
[StartTime "11:08:08"]
[Termination "Game drawn by repetition"]
[TimeControl "1500+10"]
[Timezone "UTC"]
[UTCDate "2021.02.28"]
[UTCTime "11:08:08"]
[WhiteElo "2226"]

1. e4 { [%clk 0:25:10] } 1... e5 { [%clk 0:25:10] } 2. Nc3 { [%clk 0:25:13.5] } 2... Nf6 { [%clk 0:25:14.1] } 3. g3 { [%clk 0:25:18.8] } 3... Bc5 { [%clk 0:25:17.1] } 4. Bg2 { [%clk 0:25:24.2] } 4... Nc6 { [%clk 0:25:23.6] } 5. Nge2 { [%clk 0:25:29.3] } 5... a6 { [%clk 0:25:29.4] } 6. O-O { [%clk 0:25:24.9] } 6... d6 { [%clk 0:25:35.5] } 7. h3 { [%clk 0:25:21.7] } 7... Be6 { [%clk 0:22:55.6] } 8. Nd5 { [%clk 0:25:05.7] } 8... Qd7 { [%clk 0:22:06.8] } 9. Kh2 { [%clk 0:24:53.9] } 9... h5 { [%clk 0:20:21.5] } 10. c3 { [%clk 0:23:40.9] } 10... Ba7 { [%clk 0:20:20.3] } 11. b4 { [%clk 0:21:04.6] } 11... Ne7 { [%clk 0:17:49.4] } 12. Nxe7 { [%clk 0:16:26] } 12... Qxe7 { [%clk 0:17:32.5] } 13. d4 { [%clk 0:16:12.5] } 13... Bc4 { [%clk 0:15:24.6] } 14. Re1 { [%clk 0:16:02.4] } 14... c6 { [%clk 0:15:09.6] } 15. a4 { [%clk 0:15:06.5] } 15... O-O { [%clk 0:13:29.9] } 16. Kg1 { [%clk 0:14:01.8] } 16... Rfd8 { [%clk 0:12:57.2] } 17. Bg5 { [%clk 0:13:21.9] } 17... Rac8 { [%clk 0:12:27.5] } 18. Qd2 { [%clk 0:12:35] } 18... d5 { [%clk 0:11:35.4] } 19. dxe5 { [%clk 0:09:47.3] } 19... Qxe5 { [%clk 0:11:10] } 20. exd5 { [%clk 0:09:40.1] } 20... Bxd5 { [%clk 0:09:15.8] } 21. Nd4 { [%clk 0:08:36.8] } 21... Qc7 { [%clk 0:06:54.6] } 22. Bxf6 { [%clk 0:06:35.2] } 22... gxf6 { [%clk 0:07:00.9] } 23. Qh6 { [%clk 0:06:10.6] } 23... Bxd4 { [%clk 0:06:36.5] } 24. cxd4 { [%clk 0:06:13.6] } 24... Bxg2 { [%clk 0:06:09.4] } 25. Kxg2 { [%clk 0:06:15.3] } 25... Qd6 { [%clk 0:05:40.1] } 26. Qxh5 { [%clk 0:05:59.8] } 26... Re8 { [%clk 0:05:15.3] } 27. Qg4+ { [%clk 0:05:15.2] } 27... Kh8 { [%clk 0:05:09.4] } 28. Qh4+ { [%clk 0:05:15.9] } 28... Kg7 { [%clk 0:05:02] } 29. Qg4+ { [%clk 0:05:21.9] } 29... Kh8 { [%clk 0:05:08.4] } 30. Qh4+ { [%clk 0:05:26.2] } 30... Kg7 { [%clk 0:05:17.2] } 31. Qg4+ { [%clk 0:05:34.7] } 31... Kh8 { [%clk 0:05:26.2] } 1/2-1/2

[Event "Live Chess"]
[Site "Chess.com"]
[Date "2021.02.28"]
[Round "-"]
[White "Lothian, Robert"]
[Black "Shafi, Declan"]
[Result "1/2-1/2"]
[BlackElo "2071"]
[CurrentPosition "6k1/p3b2p/1p1pP1p1/8/3B4/6P1/PPr4P/4R1K1 b - -"]
[ECO "B23"]
[ECOUrl "https://www.chess.com/openings/Sicilian-Defense-Chameleon-Variation-3...g6"]
[EndDate "2021.02.28"]
[EndTime "11:58:43"]
[Link "https://www.chess.com/live/game/8249043599"]
[StartTime "11:01:22"]
[Termination "Game drawn by agreement"]
[TimeControl "1500+10"]
[Timezone "UTC"]
[UTCDate "2021.02.28"]
[UTCTime "11:01:22"]
[WhiteElo "2021"]

1. e4 { [%clk 0:25:10] } 1... c5 { [%clk 0:25:10] } 2. Nc3 { [%clk 0:24:45.3] } 2... Nc6 { [%clk 0:25:16.1] } 3. Nge2 { [%clk 0:24:48.4] } 3... g6 { [%clk 0:24:04.4] } 4. g3 { [%clk 0:24:51.7] } 4... Bg7 { [%clk 0:24:11.3] } 5. Bg2 { [%clk 0:24:57] } 5... e6 { [%clk 0:24:12.7] } 6. O-O { [%clk 0:25:02.6] } 6... Nge7 { [%clk 0:24:17.8] } 7. d3 { [%clk 0:24:50.9] } 7... O-O { [%clk 0:24:09] } 8. Be3 { [%clk 0:24:48.1] } 8... Nd4 { [%clk 0:24:16] } 9. Qd2 { [%clk 0:24:14.7] } 9... Nec6 { [%clk 0:23:00.7] } 10. f4 { [%clk 0:18:12.6] } 10... d6 { [%clk 0:21:52.9] } 11. Nd1 { [%clk 0:17:36.4] } 11... Rb8 { [%clk 0:21:22.7] } 12. c3 { [%clk 0:17:25.2] } 12... Nxe2+ { [%clk 0:21:09.7] } 13. Qxe2 { [%clk 0:17:33.3] } 13... b6 { [%clk 0:21:03.2] } 14. Nf2 { [%clk 0:15:32] } 14... Bb7 { [%clk 0:20:46.6] } 15. Rad1 { [%clk 0:14:11.6] } 15... f5 { [%clk 0:18:22.8] } 16. d4 { [%clk 0:12:26.7] } 16... cxd4 { [%clk 0:15:40.8] } 17. cxd4 { [%clk 0:12:32] } 17... fxe4 { [%clk 0:14:33.6] } 18. Nxe4 { [%clk 0:12:31] } 18... Nb4 { [%clk 0:14:22.9] } 19. Qd2 { [%clk 0:12:07.7] } 19... Nd5 { [%clk 0:14:26.1] } 20. Bf2 { [%clk 0:11:19.7] } 20... Rc8 { [%clk 0:13:55.5] } 21. Ng5 { [%clk 0:10:03.2] } 21... Qd7 { [%clk 0:13:49.6] } 22. Rfe1 { [%clk 0:08:47.3] } 22... Rfe8 { [%clk 0:12:20.5] } 23. Bh3 { [%clk 0:08:38.1] } 23... Nc7 { [%clk 0:12:07.6] } 24. Nxe6 { [%clk 0:04:13.8] } 24... Rxe6 { [%clk 0:11:02.2] } 25. Rxe6 { [%clk 0:04:20.9] } 25... Bd5 { [%clk 0:08:25.3] } 26. f5 { [%clk 0:04:18] } 26... Nxe6 { [%clk 0:07:27.2] } 27. fxe6 { [%clk 0:04:25.9] } 27... Bxe6 { [%clk 0:07:28.7] } 28. Bxe6+ { [%clk 0:04:34] } 28... Qxe6 { [%clk 0:07:38.1] } 29. d5 { [%clk 0:04:14.6] } 29... Qf5 { [%clk 0:07:01.8] } 30. Qe2 { [%clk 0:02:15.4] } 30... Rc2 { [%clk 0:04:50] } 31. Qe6+ { [%clk 0:01:35.6] } 31... Qxe6 { [%clk 0:03:13.4] } 32. dxe6 { [%clk 0:01:43.9] } 32... Bf8 { [%clk 0:03:22.3] } 33. Re1 { [%clk 0:01:36.2] } 33... Be7 { [%clk 0:03:23.2] } 34. Bd4 { [%clk 0:01:41.7] } 1/2-1/2